bitfinex/quotes_BTCUSD_20250902
["timestamp","ask_amount","ask_price","bid_price","bid_amount"]
[1756831896196,0.0012,110880.0,110870.0,1.84840512]
[1756831896400,0.0002,110890.0,110880.0,1.25809287]
[1756831896585,0.0002,110890.0,110880.0,1.50743886]
[1756831896788,0.0002,110890.0,110880.0,1.50958886]
[1756831896989,0.0002,110890.0,110880.0,0.84280999]
[1756831897195,0.0002,110890.0,110880.0,1.50958886]
[1756831897654,0.0002,110900.0,110890.0,0.25129773]
[1756831897831,0.0002,110900.0,110890.0,1.12336573]
[1756831898102,0.0002,110900.0,110890.0,1.12874573]
[1756831898315,0.0002,110900.0,110890.0,0.97458573]
[1756831898530,0.0002,110900.0,110890.0,1.52882573]
[1756831898753,0.0002,110910.0,110900.0,0.54128147]
[1756831898956,0.0002,110910.0,110900.0,1.27826947]
[1756831899170,0.0002,110910.0,110900.0,1.12707947]
[1756831899378,0.0002,110910.0,110900.0,1.52972223]
[1756831899581,0.0002,110910.0,110900.0,1.68392223]
[1756831899810,0.0002,110910.0,110900.0,1.68693223]
[1756831900001,0.0002,110910.0,110900.0,1.26006022]
[1756831900137,0.0022,110910.0,110900.0,1.10241022]
[1756831900511,0.0022,110910.0,110900.0,1.53268223]
[1756831900512,0.00636,110910.0,110900.0,1.53268223]
[1756831900700,0.00636,110910.0,110900.0,1.68732223]
[1756831900899,0.0032,110910.0,110900.0,1.26205022]
[1756831901102,0.0032,110910.0,110900.0,1.53472223]
[1756831901350,0.0032,110910.0,110900.0,1.72919121]
[1756831901551,0.0032,110910.0,110900.0,1.73219121]
[1756831901756,0.0012,110910.0,110900.0,1.73219121]
[1756831901978,0.0032,110910.0,110900.0,1.73015121]
[1756831902185,0.00636,110910.0,110900.0,1.3027992]
[1756831902396,0.0032,110910.0,110900.0,1.72853845]
[1756831903022,0.0032,110910.0,110900.0,1.72861845]
[1756831903216,0.00636,110910.0,110900.0,1.72861845]
[1756831903672,0.00636,110910.0,110900.0,0.95926644]
[1756831903889,0.00636,110910.0,110900.0,1.65577845]
[1756831904128,0.00636,110910.0,110900.0,1.07374644]
[1756831904331,0.00636,110910.0,110900.0,1.65577845]
[1756831904737,0.00636,110910.0,110900.0,1.25577845]
[1756831904945,0.0012,110910.0,110900.0,1.25781845]
[1756831905155,0.00636,110910.0,110900.0,1.25781845]
[1756831905367,0.00636,110910.0,110900.0,1.25577845]
[1756831905638,0.00636,110910.0,110900.0,0.67374644]
[1756831905846,0.18668639,110910.0,110900.0,0.67374644]
[1756831906263,0.00636,110910.0,110900.0,0.82854644]
[1756831906478,0.18668639,110910.0,110900.0,0.82854644]
[1756831907094,0.00636,110910.0,110900.0,0.82854644]
[1756831907334,0.00636,110910.0,110900.0,0.82554644]
[1756831907739,0.00636,110910.0,110900.0,1.25385845]
[1756831907952,0.00636,110910.0,110900.0,1.25589845]
[1756831908155,0.0012,110910.0,110900.0,1.25489845]
[1756831908400,0.0012,110910.0,110900.0,1.25790845]
[1756831908602,0.0012,110910.0,110900.0,0.82858644]
[1756831908805,0.0002,110910.0,110900.0,0.82358644]
[1756831909011,0.00636,110910.0,110900.0,1.25189845]
[1756831909212,0.0032,110910.0,110900.0,1.25189845]
[1756831909426,0.0012,110910.0,110900.0,1.65189845]
[1756831909634,0.0012,110910.0,110900.0,1.65490845]
[1756831909839,0.0032,110910.0,110900.0,1.22458644]
[1756831910049,0.0032,110910.0,110900.0,1.65189845]
[1756831910256,0.0012,110910.0,110900.0,1.65189845]
[1756831910462,0.0012,110910.0,110900.0,1.65490845]
[1756831910671,0.0032,110910.0,110900.0,1.06774644]
[1756831910882,0.00636,110910.0,110900.0,1.22250644]
[1756831911090,0.18668639,110910.0,110900.0,1.06774644]
[1756831911297,0.18668639,110910.0,110900.0,1.22246644]
[1756831911908,0.18668639,110910.0,110900.0,0.82246644]
[1756831912553,0.00636,110910.0,110900.0,0.82246644]
[1756831912970,0.18668639,110910.0,110900.0,0.66774644]
[1756831913182,0.18668639,110910.0,110900.0,0.82242644]
[1756831913387,0.18668639,110910.0,110900.0,0.64212379]
[1756831913607,0.18668639,110910.0,110900.0,0.82246644]
[1756831913824,0.18668639,110910.0,110900.0,0.64212379]
[1756831914027,0.18668639,110910.0,110900.0,0.82246644]
[1756831915614,0.18668639,110910.0,110900.0,0.64212379]
[1756831915853,0.18668639,110910.0,110900.0,0.46646497]
[1756831916089,0.18668639,110910.0,110900.0,0.62118497]
[1756831916327,0.18668639,110910.0,110900.0,0.64212379]
[1756831917086,0.18668639,110910.0,110900.0,0.82246644]
[1756831917540,0.18668639,110910.0,110900.0,0.64212379]
[1756831917764,0.18668639,110910.0,110900.0,0.37288379]
[1756831917986,0.18668639,110910.0,110900.0,0.21820379]
[1756831918209,0.18668639,110910.0,110900.0,0.37288379]
[1756831918411,0.18668639,110910.0,110900.0,0.21820379]
[1756831918631,0.18668639,110910.0,110900.0,0.2809678]
[1756831918632,0.6139984,110910.0,110900.0,0.2809678]
[1756831918851,0.6139984,110910.0,110900.0,0.22024]
[1756831919427,0.6139984,110910.0,110900.0,0.06556]
[1756831919643,0.18668639,110910.0,110900.0,0.22024]
[1756831919864,0.6139984,110910.0,110900.0,0.22024]
[1756831920056,0.6139984,110910.0,110900.0,0.06556]
[1756831920266,0.9784684,110910.0,110900.0,0.002]
[1756831920474,0.99780439,110910.0,110900.0,0.1566]
[1756831920705,0.99780439,110910.0,110900.0,0.15672]
[1756831921153,0.99780439,110910.0,110900.0,0.15572]
[1756831921728,0.99680439,110910.0,110900.0,0.15472]
[1756831922144,0.99780439,110910.0,110900.0,0.15572]
[1756831922343,0.99680439,110910.0,110900.0,0.15472]
[1756831922699,0.99780439,110910.0,110900.0,0.15572]
[1756831923341,0.9784684,110910.0,110900.0,0.15572]
[1756831923817,0.99780196,110910.0,110900.0,0.15572]
[1756831924268,0.57048995,110910.0,110900.0,0.15572]
[1756831924475,0.99780196,110910.0,110900.0,0.15572]
[1756831925345,0.9784684,110910.0,110900.0,0.15572]
[1756831928048,0.9784684,110910.0,110900.0,0.001]
[1756831928252,0.9784684,110910.0,110900.0,0.1556]
[1756831929518,0.93724294,110910.0,110900.0,0.1556]
[1756831929724,1.34779949,110910.0,110900.0,0.001]
[1756831930133,1.34779949,110910.0,110900.0,0.15556]
[1756831930745,1.34779949,110910.0,110900.0,0.001]
[1756831930883,1.34779949,110910.0,110900.0,0.15556]
[1756831931317,1.61693548,110910.0,110900.0,0.001]
[1756831931534,1.63624324,110910.0,110900.0,0.001]
[1756831931960,1.48168324,110910.0,110900.0,0.001]
[1756831932164,0.54599415,110910.0,110900.0,0.001]
[1756831932374,0.9565507,110910.0,110900.0,0.001]
[1756831932604,0.18034265,110900.0,110890.0,0.15456]
[1756831932811,0.52034265,110900.0,110890.0,0.15975]
[1756831933019,0.52034265,110900.0,110890.0,0.35890103]
[1756831933234,0.18034265,110900.0,110890.0,0.86352027]
[1756831933452,0.18052639,110910.0,110900.0,0.20228147]
[1756831933453,0.0082,110910.0,110900.0,0.20228147]
[1756831933669,0.0082,110910.0,110900.0,0.29938746]
[1756831933894,0.18352639,110910.0,110900.0,0.45310746]
[1756831934096,0.18052639,110910.0,110900.0,0.45310746]
[1756831934520,0.18533398,110910.0,110900.0,0.26951481]
[1756831934762,0.18251639,110910.0,110900.0,0.26951481]
[1756831935220,0.18252639,110910.0,110900.0,0.26951481]
[1756831935942,0.18552639,110910.0,110900.0,0.27051481]
[1756831937168,0.18552639,110910.0,110900.0,0.33407481]
[1756831937370,0.18552639,110910.0,110900.0,0.51762746]
[1756831938031,0.0052,110910.0,110900.0,0.51762746]
[1756831938413,0.0052,110910.0,110900.0,0.5572377]
[1756831939278,0.0052,110910.0,110900.0,0.98475919]
[1756831939482,0.0052,110910.0,110900.0,1.25395919]
[1756831939908,0.0052,110910.0,110900.0,1.25383919]
[1756831940383,0.0052,110910.0,110900.0,0.8263177]
[1756831940593,0.0052,110910.0,110900.0,1.25383919]
[1756831940973,0.0052,110910.0,110900.0,0.8263177]
[1756831942402,0.0052,110910.0,110900.0,0.6717577]
[1756831942403,0.18552639,110910.0,110900.0,0.6717577]
[1756831942613,0.19053639,110910.0,110900.0,0.64066505]
[1756831943033,0.19053639,110910.0,110900.0,0.64264505]
[1756831943242,0.18552639,110910.0,110900.0,0.6685477]
[1756831943459,0.18751639,110910.0,110900.0,0.8229877]
[1756831943686,0.0052,110910.0,110900.0,0.8261977]
[1756831944358,0.0052,110910.0,110900.0,0.8230277]
[1756831944359,0.18751639,110910.0,110900.0,0.8230277]
[1756831944771,0.18751639,110910.0,110900.0,0.48820505]
[1756831945044,0.19053639,110910.0,110900.0,0.64070505]
[1756831945262,0.18751639,110910.0,110900.0,0.64268505]
[1756831945468,0.19053639,110910.0,110900.0,0.64070505]
[1756831945886,0.18751639,110910.0,110900.0,0.64288505]
[1756831946090,0.18552639,110910.0,110900.0,0.8264377]
[1756831946293,0.18552639,110910.0,110900.0,0.8232277]
[1756831946518,0.18552639,110910.0,110900.0,0.8264377]
[1756831946728,0.18552639,110910.0,110900.0,0.8232277]
[1756831948456,0.0052,110910.0,110900.0,0.8264377]
[1756831948829,0.0052,110910.0,110900.0,1.25395919]
[1756831950034,0.0052,110910.0,110900.0,1.09927919]
[1756831950200,0.0052,110910.0,110900.0,1.25383919]
[1756831950544,0.18552639,110910.0,110900.0,0.6717577]
[1756831950741,0.18552639,110910.0,110900.0,0.8263577]
[1756831950947,0.0052,110910.0,110900.0,0.8263577]
[1756831951153,0.0052,110910.0,110900.0,0.6717577]
[1756831951353,0.18552639,110910.0,110900.0,0.8263577]
[1756831951596,0.0052,110910.0,110900.0,0.8263577]
[1756831952007,0.0052,110910.0,110900.0,0.6717577]
[1756831952208,0.18552639,110910.0,110900.0,0.8263577]
[1756831952621,0.18751639,110910.0,110900.0,0.62893746]
[1756831952871,0.19053639,110910.0,110900.0,0.78353746]
[1756831953086,0.19053639,110910.0,110900.0,0.48703749]
[1756831953294,0.19053639,110910.0,110900.0,0.64155749]
[1756831953716,0.19053639,110910.0,110900.0,0.82190014]
[1756831953910,0.19053639,110910.0,110900.0,0.64155749]
[1756831954121,0.19053639,110910.0,110900.0,0.64151749]
[1756831954321,0.19053639,110910.0,110900.0,0.82384014]
[1756831954570,0.18751639,110910.0,110900.0,0.64349749]
[1756831954781,0.19053639,110910.0,110900.0,0.64151749]
[1756831955433,0.61805788,110910.0,110900.0,0.64147749]
[1756831956651,0.61805788,110910.0,110900.0,0.48703749]
[1756831956873,0.61805788,110910.0,110900.0,0.64147749]
[1756831957083,0.19053639,110910.0,110900.0,0.64147749]
[1756831957519,0.18751639,110910.0,110900.0,0.64345749]
[1756831958211,0.19071639,110910.0,110900.0,0.64345749]
[1756831958645,0.19071639,110910.0,110900.0,0.48901749]
[1756831958838,0.19071639,110910.0,110900.0,0.64147749]
[1756831959408,0.18751639,110910.0,110900.0,0.64351749]
[1756831960446,0.19071639,110910.0,110900.0,0.64351749]
[1756831960638,0.19071639,110910.0,110900.0,0.64139749]
[1756831960967,0.8562023,110910.0,110900.0,0.33376]
[1756831961173,1.1962023,110910.0,110900.0,0.15532]
[1756831962421,1.1962023,110910.0,110900.0,0.001]
[1756831962597,1.1962023,110910.0,110900.0,0.15528]
[1756831963014,1.1962023,110910.0,110900.0,0.15524]
[1756831964377,0.53071639,110910.0,110900.0,0.15524]
[1756831964579,1.1962023,110910.0,110900.0,0.15524]
[1756831965608,0.53071639,110910.0,110900.0,0.15524]
[1756831965811,1.1962023,110910.0,110900.0,0.15524]
[1756831967610,1.1962023,110910.0,110900.0,0.001]
[1756831967814,1.1962023,110910.0,110900.0,0.15524]
[1756831969735,1.1962023,110910.0,110900.0,0.15516]
[1756831970345,1.1962023,110910.0,110900.0,0.1552]
[1756831970899,1.1962023,110910.0,110900.0,0.001]
[1756831971106,1.1962023,110910.0,110900.0,0.1552]
[1756831971303,0.53071639,110910.0,110900.0,0.001]
[1756831971511,1.1962023,110910.0,110900.0,0.001]
[1756831971710,1.5092703,110910.0,110900.0,0.001]
[1756831971944,1.51702121,110910.0,110900.0,0.001]
[1756831972572,1.36086121,110910.0,110900.0,0.001]
[1756831972758,0.18035891,110890.0,110880.0,0.21819085]
[1756831972943,0.85082292,110890.0,110880.0,0.21819085]
[1756831973150,0.85120482,110890.0,110880.0,0.21819085]
[1756831974000,0.18251891,110890.0,110880.0,0.22023085]
[1756831974208,0.85520482,110890.0,110880.0,0.21919085]
[1756831974408,0.85520482,110890.0,110880.0,0.22123085]
[1756831974748,0.85520482,110890.0,110880.0,0.21919085]
[1756831976253,0.85520482,110890.0,110880.0,0.00147085]
[1756831976254,1.19520482,110890.0,110880.0,0.00147085]
[1756831976585,1.19520482,110890.0,110880.0,0.15555085]
[1756831977005,1.19520482,110890.0,110880.0,0.00147085]
[1756831977207,1.19520482,110890.0,110880.0,0.15555085]
[1756831979298,1.22029408,110890.0,110880.0,0.00147085]
[1756831979709,1.24741051,110890.0,110880.0,0.00147085]
[1756831980172,1.22232125,110890.0,110880.0,0.00147085]
[1756831980522,1.22232125,110890.0,110880.0,0.15555085]
[1756831980920,0.55683534,110890.0,110880.0,0.15555085]
[1756831981147,1.22232125,110890.0,110880.0,0.15555085]
[1756831982276,1.22232125,110890.0,110880.0,0.15559085]
[1756831984351,0.52435891,110890.0,110880.0,0.16066085]
[1756831984771,0.52435891,110890.0,110880.0,0.15763085]
[1756831984981,1.19520482,110890.0,110880.0,0.00147085]
[1756831985112,1.19520482,110890.0,110880.0,0.15563085]
[1756831985315,1.19520482,110890.0,110880.0,0.00147085]
[1756831985527,1.19520482,110890.0,110880.0,0.15563085]
[1756831985730,1.28712081,110890.0,110880.0,0.00147085]
[1756831985940,1.44132081,110890.0,110880.0,0.00147085]
[1756831986154,1.44132081,110890.0,110880.0,1e-08]
[1756831986155,1.50828961,110890.0,110880.0,1e-08]
[1756831986561,1.56676439,110890.0,110880.0,1e-08]
[1756831986773,2.2822503,110890.0,110880.0,1e-08]
[1756831986988,0.52040772,110860.0,110850.0,0.04164]
[1756831987221,0.18042399,110850.0,110840.0,0.17833605]
[1756831987614,0.84872902,110850.0,110840.0,0.17833605]
[1756831987746,0.8459099,110850.0,110840.0,0.18037605]
[1756831988158,0.8459099,110850.0,110840.0,0.10682974]
[1756831988362,0.8488699,110850.0,110840.0,0.06402974]
[1756831988567,0.8469099,110850.0,110840.0,0.22024974]
[1756831989200,0.8469099,110850.0,110840.0,0.22338974]
[1756831989538,0.8489099,110850.0,110840.0,0.22338974]
[1756831990711,0.8489099,110850.0,110840.0,0.22024974]
[1756831990910,0.8489099,110850.0,110840.0,0.22338974]
[1756831991115,0.8508699,110850.0,110840.0,0.22024974]
[1756831991362,0.8508699,110850.0,110840.0,0.06402974]
[1756831991561,0.8538099,110850.0,110840.0,0.21818974]
[1756831992078,0.8538099,110850.0,110840.0,0.22024974]
[1756831992287,0.18832399,110850.0,110840.0,0.22024974]
[1756831992508,0.18195999,110850.0,110840.0,0.22024974]
[1756831992722,0.8503859,110850.0,110840.0,0.22024974]
[1756831993141,0.17999999,110850.0,110840.0,0.22024974]
[1756831993375,0.18281911,110850.0,110840.0,0.22024974]
[1756831993805,0.85026502,110850.0,110840.0,0.22024974]
[1756831994011,0.8474459,110850.0,110840.0,0.22024974]
[1756831994899,0.8503859,110850.0,110840.0,0.06402974]
[1756831995117,1.1903859,110850.0,110840.0,0.15458974]
[1756831997862,1.1854859,110850.0,110840.0,0.15978974]
[1756831998064,0.18342399,110850.0,110840.0,0.36116883]
[1756831998277,0.18342399,110850.0,110840.0,0.18072856]
[1756831998501,0.8538099,110850.0,110840.0,0.02140856]
[1756831998741,1.1938099,110850.0,110840.0,0.00046974]
[1756831998969,1.1938099,110850.0,110840.0,0.15486974]
[1756831999180,1.1908699,110850.0,110840.0,0.15692974]
[1756831999404,1.1889099,110850.0,110840.0,0.15692974]
[1756831999611,1.1908699,110850.0,110840.0,0.15692974]
[1756831999838,1.1938099,110850.0,110840.0,0.15692974]
[1756832001053,1.1938099,110850.0,110840.0,0.00252974]
[1756832001251,1.1938099,110850.0,110840.0,0.00046974]
[1756832001464,1.1938099,110850.0,110840.0,0.15478974]
[1756832002816,1.1938099,110850.0,110840.0,0.00046974]
[1756832003027,1.1938099,110850.0,110840.0,0.15478974]
[1756832003228,1.1938099,110850.0,110840.0,0.00046974]
[1756832003431,1.1938099,110850.0,110840.0,0.15478974]
[1756832003637,1.35045535,110850.0,110840.0,0.00046974]
[1756832003839,1.35045535,110850.0,110840.0,0.15478974]
[1756832006236,1.35045535,110850.0,110840.0,0.00046974]
[1756832006439,1.35045535,110850.0,110840.0,0.15470974]
[1756832006707,1.35045535,110850.0,110840.0,0.00046974]
[1756832007036,1.61590964,110850.0,110840.0,0.00046974]
[1756832007254,2.05742759,110850.0,110840.0,0.00046974]
[1756832007458,2.19275561,110850.0,110840.0,0.00046974]
[1756832007688,1.75753336,110850.0,110840.0,0.00046974]
[1756832008114,2.16759904,110850.0,110840.0,0.00046974]
[1756832008323,2.19177348,110850.0,110840.0,0.00046974]
[1756832008570,2.16775048,110850.0,110840.0,0.00046974]
[1756832008949,2.16375048,110850.0,110840.0,0.00046974]
[1756832009154,1.7526848,110850.0,110840.0,0.00046974]
[1756832009497,1.59527659,110850.0,110840.0,0.00046974]
[1756832009863,1.59827659,110850.0,110840.0,0.00046974]
[1756832010730,1.60027659,110850.0,110840.0,0.00046974]
[1756832011614,1.60027764,110850.0,110840.0,0.00046974]
[1756832012366,1.42098838,110850.0,110840.0,0.00046974]
[1756832012552,1.57514838,110850.0,110840.0,0.00046974]
[1756832013422,1.42098838,110850.0,110840.0,0.00046974]
[1756832013637,1.57514838,110850.0,110840.0,0.00046974]
[1756832013839,1.57518838,110850.0,110840.0,0.00046974]
[1756832014243,0.73136523,110850.0,110840.0,0.00252974]
[1756832014453,1.55228838,110850.0,110840.0,0.00046974]
[1756832014612,1.39808838,110850.0,110840.0,0.00046974]
[1756832015020,1.36590172,110850.0,110840.0,0.00046974]
[1756832015226,1.52006172,110850.0,110840.0,0.00252974]
[1756832015480,0.60236258,110850.0,110840.0,0.00252974]
[1756832015696,0.20476229,110850.0,110840.0,0.00566974]
[1756832015907,0.20476229,110850.0,110840.0,0.15986974]
[1756832015908,0.18542399,110850.0,110840.0,0.15986974]
[1756832016118,0.18542399,110850.0,110840.0,0.18080856]
[1756832016313,0.18542399,110850.0,110840.0,0.36231467]
[1756832016522,0.18542399,110850.0,110840.0,0.36124883]
[1756832017067,0.18042399,110850.0,110840.0,0.20704883]
[1756832017268,0.18324311,110850.0,110840.0,0.36124883]
[1756832017488,0.18242399,110850.0,110840.0,0.36124883]
[1756832017789,0.002,110850.0,110840.0,0.36124883]
[1756832018711,0.002,110850.0,110840.0,0.45316482]
[1756832019534,0.002,110850.0,110840.0,0.85316482]
[1756832020241,0.002,110850.0,110840.0,1.51988797]
[1756832020450,0.002,110850.0,110840.0,1.56080464]
[1756832020671,0.002,110850.0,110840.0,0.89408149]
[1756832021608,0.002,110850.0,110840.0,1.16776922]
[1756832021818,0.002,110850.0,110840.0,1.32192922]
[1756832022071,0.002,110850.0,110840.0,0.73992149]
[1756832022294,0.002,110850.0,110840.0,0.89408149]
[1756832023228,0.002,110850.0,110840.0,0.73992149]
[1756832023453,0.002,110850.0,110840.0,0.89408149]
[1756832025386,0.002,110850.0,110840.0,0.73992149]
[1756832025608,0.002,110850.0,110840.0,1.16776922]
[1756832025847,0.002,110850.0,110840.0,0.89408149]
[1756832026058,0.002,110850.0,110840.0,1.32192922]
[1756832026502,0.002,110850.0,110840.0,2.31565369]
[1756832026723,0.002,110850.0,110840.0,2.16149369]
[1756832026941,0.002,110850.0,110840.0,2.31561369]
[1756832027157,0.002,110850.0,110840.0,1.88776596]
[1756832027637,0.002,110850.0,110840.0,1.73364596]
[1756832027848,0.1803753,110880.0,110870.0,0.02093882]
[1756832028068,0.18828366,110880.0,110870.0,0.23865882]
[1756832028282,0.1803753,110880.0,110870.0,0.24075882]
[1756832028493,0.61613139,110880.0,110870.0,0.23865882]
[1756832028719,0.1854653,110880.0,110870.0,0.23865882]
[1756832028952,0.18040772,110860.0,110850.0,0.18762957]
[1756832029170,0.61312432,110860.0,110850.0,0.22272]
[1756832029387,0.18549772,110860.0,110850.0,0.24575882]
[1756832029594,0.61334545,110860.0,110850.0,0.24365882]
[1756832029830,0.18549772,110860.0,110850.0,0.24365882]
[1756832030039,0.18549772,110860.0,110850.0,0.22482]
[1756832030249,0.18549772,110860.0,110850.0,0.24575882]
[1756832030660,0.18245772,110860.0,110850.0,0.24575882]
[1756832030882,0.18545772,110860.0,110850.0,0.24675882]
[1756832031266,0.18849772,110860.0,110850.0,0.09263882]
[1756832031448,0.18545772,110860.0,110850.0,0.24675882]
[1756832032069,0.18849772,110860.0,110850.0,0.09263882]
[1756832032271,0.18849772,110860.0,110850.0,0.24465882]
[1756832032426,0.18545772,110860.0,110850.0,0.24675882]
[1756832032633,0.61634545,110860.0,110850.0,0.24675882]
[1756832033172,0.61634545,110860.0,110850.0,0.24465882]
[1756832035363,0.61634545,110860.0,110850.0,0.0696]
[1756832035568,0.61634545,110860.0,110850.0,0.22372]
[1756832035769,0.61634545,110860.0,110850.0,0.006]
[1756832035770,0.95634545,110860.0,110850.0,0.006]
[1756832035977,0.95634545,110860.0,110850.0,0.16012]
[1756832036249,0.9834682,110860.0,110850.0,0.16012]
[1756832037475,0.55562047,110860.0,110850.0,0.16012]
[1756832037745,0.9834682,110860.0,110850.0,0.16012]
[1756832040151,0.99271191,110860.0,110850.0,0.16012]
[1756832040336,0.9834682,110860.0,110850.0,0.16012]
[1756832040530,0.9834682,110860.0,110850.0,0.006]
[1756832040738,0.9834682,110860.0,110850.0,0.16012]
[1756832041560,0.99239953,110860.0,110850.0,0.16012]
[1756832042196,1.08431552,110860.0,110850.0,0.006]
[1756832042402,1.10835552,110860.0,110850.0,0.006]
[1756832042606,1.28183577,110860.0,110850.0,0.006]
[1756832043206,1.27883577,110860.0,110850.0,0.005]
[1756832043423,1.28283577,110860.0,110850.0,0.006]
[1756832043657,1.27983577,110860.0,110850.0,0.006]
[1756832045884,1.27983577,110860.0,110840.0,0.00046974]
[1756832045885,0.18042399,110850.0,110840.0,0.00046974]
[1756832046086,0.72236708,110850.0,110840.0,0.00046974]
[1756832046290,0.87571796,110850.0,110840.0,0.00046974]
[1756832046496,0.87875796,110850.0,110840.0,0.00046974]
[1756832047059,0.87975796,110850.0,110840.0,0.00046974]
[1756832047426,0.86239771,110850.0,110840.0,0.00046974]
[1756832047642,1.29024544,110850.0,110840.0,0.00046974]
[1756832047849,1.64960434,110850.0,110840.0,0.00046974]
[1756832048745,1.6996436,110850.0,110840.0,1e-08]
[1756832048964,1.7276666,110850.0,110840.0,1e-08]
[1756832049175,1.5759954,110850.0,110840.0,1e-08]
[1756832049381,1.72381804,110850.0,110840.0,1e-08]
[1756832049799,1.72281804,110850.0,110840.0,1e-08]
[1756832050224,1.56869804,110850.0,110840.0,1e-08]
[1756832050509,1.73310705,110850.0,110840.0,1e-08]
[1756832050724,1.88959501,110850.0,110840.0,1e-08]
[1756832050931,1.74434778,110850.0,110840.0,1e-08]
[1756832051080,1.87373852,110850.0,110840.0,1e-08]
[1756832051439,1.84154892,110850.0,110840.0,1e-08]
[1756832051650,1.86663818,110850.0,110840.0,1e-08]
[1756832051845,1.86763818,110850.0,110840.0,1e-08]
[1756832052088,1.96342484,110850.0,110840.0,1e-08]
[1756832052297,1.99144784,110850.0,110840.0,1e-08]
[1756832052776,1.98821222,110850.0,110840.0,1e-08]
[1756832052999,2.03656923,110850.0,110840.0,1e-08]
[1756832053650,2.03156923,110850.0,110840.0,1e-08]
[1756832053861,1.99938257,110850.0,110840.0,1e-08]
[1756832054080,2.01350942,110850.0,110840.0,1e-08]
[1756832054316,2.03764776,110850.0,110840.0,1e-08]
[1756832054742,2.037639,110850.0,110840.0,1e-08]
[1756832054950,1.85902066,110850.0,110840.0,1e-08]
[1756832055168,2.01646066,110850.0,110840.0,1e-08]
[1756832055606,2.01346066,110850.0,110840.0,1e-08]
[1756832055818,2.01746066,110850.0,110840.0,1e-08]
[1756832056470,2.00846066,110850.0,110840.0,1e-08]
[1756832056686,1.1647652,110850.0,110840.0,1e-08]
[1756832056916,1.1577652,110850.0,110840.0,1e-08]
[1756832057123,1.1657652,110850.0,110840.0,1e-08]
[1756832057331,1.11740819,110850.0,110840.0,1e-08]
[1756832057742,1.12212352,110850.0,110840.0,1e-08]
[1756832057963,1.16256036,110850.0,110840.0,1e-08]
[1756832058215,0.52048912,110810.0,110800.0,0.07354631]
[1756832058432,0.76890511,110810.0,110800.0,0.07557631]
[1756832058809,0.79604214,110810.0,110800.0,0.07557631]
[1756832059010,1.22174987,110810.0,110800.0,0.07557631]
[1756832059376,1.22322069,110810.0,110800.0,0.00403]
[1756832059589,1.65634842,110810.0,110800.0,0.002]
[1756832059792,0.34,110790.0,110780.0,0.0004]
[1756832059955,0.94836943,110790.0,110780.0,0.00293]
[1756832060160,0.95743436,110790.0,110780.0,0.00496]
[1756832060412,0.98457456,110790.0,110780.0,0.00496]
[1756832060966,0.98557456,110790.0,110780.0,0.00496]
[1756832061976,0.98657456,110790.0,110780.0,0.00796]
[1756832062185,0.55872683,110790.0,110780.0,0.00796]
[1756832062394,0.98657456,110790.0,110780.0,0.00796]
[1756832063865,0.98657456,110790.0,110780.0,0.00543]
[1756832064561,0.98657456,110790.0,110780.0,0.00796]
[1756832066227,0.97750963,110790.0,110780.0,0.00796]
[1756832066637,0.97750963,110790.0,110780.0,0.00543]
[1756832066833,0.97750963,110790.0,110780.0,0.00796]
[1756832067803,0.5496619,110790.0,110780.0,0.00543]
[1756832068223,0.97750963,110790.0,110780.0,0.00543]
[1756832068645,0.98278963,110790.0,110780.0,0.0034]
[1756832068849,1.22890562,110790.0,110780.0,0.0034]
[1756832069059,1.24820249,110790.0,110780.0,0.0034]
[1756832069597,2.07826724,110790.0,110780.0,0.0034]
[1756832070179,2.10629024,110790.0,110780.0,0.0034]
[1756832070389,1.6946825,110790.0,110780.0,0.0034]
[1756832070812,1.71878425,110790.0,110780.0,0.0034]
[1756832071013,1.51147199,110790.0,110780.0,0.0034]
[1756832071213,1.66567199,110790.0,110780.0,0.0034]
[1756832071419,1.27114424,110790.0,110780.0,0.0034]
[1756832071644,1.27742834,110790.0,110780.0,0.0034]
[1756832071838,0.84245651,110790.0,110780.0,0.0034]
[1756832072045,1.27114424,110790.0,110780.0,0.0034]
[1756832072295,1.27743119,110790.0,110780.0,0.0034]
[1756832074426,1.30956686,110790.0,110780.0,0.0034]
[1756832074646,1.27743119,110790.0,110780.0,0.0034]
[1756832074844,1.27743496,110790.0,110780.0,0.0034]
[1756832075110,1.30957063,110790.0,110780.0,0.0034]
[1756832075966,1.28546888,110790.0,110780.0,0.0034]
[1756832076767,1.28460188,110790.0,110780.0,0.0034]
[1756832077164,0.88100341,110790.0,110780.0,0.0034]
[1756832077377,1.35789465,110790.0,110780.0,0.0034]
[1756832078122,1.32575898,110790.0,110780.0,1e-08]
[1756832078329,1.27755547,110790.0,110780.0,1e-08]
[1756832078555,1.30558718,110790.0,110780.0,1e-08]
[1756832078769,0.1805543,110770.0,110760.0,0.0004]
[1756832078966,0.90800442,110770.0,110760.0,0.0004]
[1756832079092,0.91029326,110770.0,110760.0,0.0004]
[1756832079294,1.28254518,110770.0,110760.0,0.0004]
[1756832079499,1.2744822,110770.0,110760.0,0.0004]
[1756832079903,1.3020995,110770.0,110760.0,0.0004]
[1756832081192,1.3050995,110770.0,110760.0,0.0004]
[1756832081579,1.54492014,110770.0,110760.0,0.0004]
[1756832081779,0.87741177,110770.0,110760.0,0.0004]
[1756832081915,0.87741276,110770.0,110760.0,0.0004]
[1756832082119,1.54492113,110770.0,110760.0,0.0004]
[1756832082356,1.54392113,110770.0,110760.0,0.0004]
[1756832082571,1.58437091,110770.0,110760.0,0.0004]
[1756832082779,1.58637091,110770.0,110760.0,0.0004]
[1756832082980,0.76462254,110770.0,110760.0,0.00246]
[1756832083190,1.61862825,110770.0,110760.0,0.0004]
[1756832083823,1.46438825,110770.0,110760.0,0.0004]
[1756832084037,0.29522076,110770.0,110760.0,0.00499]
[1756832084233,0.256663,110770.0,110760.0,0.00499]
[1756832084472,0.57246847,110770.0,110760.0,0.00499]
[1756832084681,0.5453217,110770.0,110760.0,0.00499]
[1756832084887,0.2053217,110770.0,110760.0,0.42437942]
[1756832085091,0.18602483,110770.0,110760.0,0.42437942]
[1756832085292,0.00547053,110770.0,110760.0,0.42437942]
[1756832085606,0.00547053,110770.0,110760.0,1.18380378]
[1756832085831,0.00547053,110770.0,110760.0,1.20859378]
[1756832086262,0.00547053,110770.0,110760.0,1.60859378]
[1756832086714,0.00247053,110770.0,110760.0,1.20859378]
[1756832087173,0.00447053,110770.0,110760.0,1.60859378]
[1756832087404,0.00047053,110770.0,110760.0,1.60859378]
[1756832087846,0.00347053,110770.0,110760.0,1.60959378]
[1756832088302,0.00247053,110770.0,110760.0,1.60859378]
[1756832088519,0.00347053,110770.0,110760.0,1.61059378]